[Event "Titled Tuesday Blitz August 15 Early 2023"]
[White "Ivanov, Alexey"]
[Black "UgarteCesar"]
[WhiteFideId "4167635"]
[WhiteElo "2628"]
[BlackElo "2321"]
[Result "0-1"]
[Round "1"]
[TimeControl "180+1"]
[Date "2023.08.15"]
[WhiteClock "0:00:50"]
[BlackClock "0:00:41"]
[Board "142"]

1. Nf3 {[%clk 0:03:00]}  d5 {[%clk 0:02:59]} 2. c4 {[%clk 0:03:00]}  e6 {[%clk 0:02:59]} 3. g3 {[%clk 0:02:59]}  Nf6 {[%clk 0:02:57]} 4. Bg2 {[%clk 0:03:00]}  Nbd7 {[%clk 0:02:58]} 5. O-O {[%clk 0:03:00]}  dxc4 {[%clk 0:02:58]} 6. a4 {[%clk 0:03:00]}  c6 {[%clk 0:02:57]} 7. Na3 {[%clk 0:02:59]}  Bxa3 {[%clk 0:02:56]} 8. bxa3 {[%clk 0:02:59]}  O-O {[%clk 0:02:56]} 9. Qc2 {[%clk 0:02:59]}  b5 {[%clk 0:02:55]} 10. Nd4 {[%clk 0:02:58]}  Qb6 {[%clk 0:02:42]} 11. Nxc6 {[%clk 0:02:55]}  Bb7 {[%clk 0:02:41]} 12. axb5 {[%clk 0:02:55]}  a6 {[%clk 0:02:30]} 13. d3 {[%clk 0:02:31]}  axb5 {[%clk 0:02:08]} 14. Be3 {[%clk 0:02:31]}  Qc7 {[%clk 0:02:02]} 15. Nb4 {[%clk 0:02:15]}  Bxg2 {[%clk 0:02:00]} 16. Kxg2 {[%clk 0:02:16]}  Rfc8 {[%clk 0:01:56]} 17. Rfc1 {[%clk 0:02:12]}  Nd5 {[%clk 0:01:54]} 18. dxc4 {[%clk 0:02:02]}  Nxe3+ {[%clk 0:01:52]} 19. fxe3 {[%clk 0:02:02]}  bxc4 {[%clk 0:01:49]} 20. e4 {[%clk 0:01:52]}  Nf6 {[%clk 0:01:39]} 21. Rf1 {[%clk 0:01:44]}  Qe5 {[%clk 0:01:37]} 22. Ra2 {[%clk 0:01:30]}  Qxe4+ {[%clk 0:01:31]} 23. Qxe4 {[%clk 0:01:29]}  Nxe4 {[%clk 0:01:32]} 24. Rc1 {[%clk 0:01:28]}  c3 {[%clk 0:01:25]} 25. Nd3 {[%clk 0:01:24]}  f5 {[%clk 0:01:24]} 26. a4 {[%clk 0:01:23]}  Ra5 {[%clk 0:01:16]} 27. Kf3 {[%clk 0:01:22]}  Rc4 {[%clk 0:01:14]} 28. Rca1 {[%clk 0:01:15]}  c2 {[%clk 0:01:13]} 29. Nc1 {[%clk 0:01:13]}  Nc5 {[%clk 0:01:02]} 30. Rb2 {[%clk 0:01:10]}  Raxa4 {[%clk 0:00:55]} 31. Rxa4 {[%clk 0:01:09]}  Nxa4 {[%clk 0:00:55]} 32. Rb7 {[%clk 0:01:06]}  h6 {[%clk 0:00:55]} 33. Re7 {[%clk 0:01:03]}  Nc5 {[%clk 0:00:54]} 34. h4 {[%clk 0:01:02]}  Kf8 {[%clk 0:00:51]} 35. Rc7 {[%clk 0:01:01]}  Rc3+ {[%clk 0:00:44]} 36. Kf4 {[%clk 0:00:50]}  Nd3+ {[%clk 0:00:41]} 0-1


[Site "https://www.chess.com"]

[Event "Titled Tuesday Blitz August 15 Early 2023"]
[White "Radzhabov, Rodion"]
[Black "Jahnz, Fabian"]
[WhiteFideId "884715"]
[BlackFideId "4653300"]
[WhiteElo "2627"]
[BlackElo "2320"]
[Result "1-0"]
[Round "1"]
[TimeControl "180+1"]
[Date "2023.08.15"]
[WhiteClock "0:00:06"]
[BlackClock "0:00:47"]
[Board "144"]

1. e4 {[%clk 0:03:00]}  c6 {[%clk 0:02:59]} 2. Nc3 {[%clk 0:02:58]}  d5 {[%clk 0:03:00]} 3. Qe2 {[%clk 0:02:49]}  dxe4 {[%clk 0:02:59]} 4. Nxe4 {[%clk 0:02:37]}  Nf6 {[%clk 0:02:56]} 5. Nxf6+ {[%clk 0:02:32]}  gxf6 {[%clk 0:02:57]} 6. Nf3 {[%clk 0:02:31]}  Bf5 {[%clk 0:02:56]} 7. d4 {[%clk 0:02:25]}  Nd7 {[%clk 0:02:54]} 8. g3 {[%clk 0:02:25]}  e6 {[%clk 0:02:52]} 9. Bg2 {[%clk 0:02:23]}  Bd6 {[%clk 0:02:51]} 10. O-O {[%clk 0:02:17]}  Qc7 {[%clk 0:02:44]} 11. c4 {[%clk 0:02:13]}  O-O-O {[%clk 0:02:40]} 12. c5 {[%clk 0:02:06]}  Be7 {[%clk 0:02:38]} 13. Bf4 {[%clk 0:02:03]}  Qa5 {[%clk 0:02:23]} 14. a3 {[%clk 0:01:38]}  h5 {[%clk 0:02:15]} 15. b4 {[%clk 0:01:32]}  Qa4 {[%clk 0:02:15]} 16. Rfc1 {[%clk 0:01:05]}  a6 {[%clk 0:01:57]} 17. Qb2 {[%clk 0:00:56]}  Be4 {[%clk 0:01:48]} 18. Nd2 {[%clk 0:00:44]}  Bxg2 {[%clk 0:01:47]} 19. Kxg2 {[%clk 0:00:45]}  h4 {[%clk 0:01:44]} 20. Nb1 {[%clk 0:00:34]}  Qb5 {[%clk 0:01:38]} 21. Rc3 {[%clk 0:00:33]}  h3+ {[%clk 0:01:36]} 22. Kg1 {[%clk 0:00:32]}  e5 {[%clk 0:01:32]} 23. a4 {[%clk 0:00:29]}  exd4 {[%clk 0:01:23]} 24. axb5 {[%clk 0:00:28]}  dxc3 {[%clk 0:01:23]} 25. Nxc3 {[%clk 0:00:27]}  cxb5 {[%clk 0:01:22]} 26. Nxb5 {[%clk 0:00:24]}  Ne5 {[%clk 0:01:16]} 27. Bxe5 {[%clk 0:00:18]}  fxe5 {[%clk 0:00:59]} 28. Qxe5 {[%clk 0:00:17]}  axb5 {[%clk 0:00:53]} 29. Qxe7 {[%clk 0:00:12]}  Kb8 {[%clk 0:00:51]} 30. Qe5+ {[%clk 0:00:12]}  Kc8 {[%clk 0:00:49]} 31. f3 {[%clk 0:00:06]}  Kd7 {[%clk 0:00:48]} 32. Qd6+ {[%clk 0:00:06]}  Ke8 {[%clk 0:00:47]} 33. Re1# {[%clk 0:00:06]} 1-0


[Site "https://www.chess.com"]

[Event "Titled Tuesday Blitz August 15 Early 2023"]
[White "Skaric, Djuro"]
[Black "Kleiman, Jake"]
[WhiteFideId "934569"]
[BlackFideId "2020041"]
[WhiteElo "2315"]
[BlackElo "2625"]
[Result "0-1"]
[Round "1"]
[TimeControl "180+1"]
[Date "2023.08.15"]
[WhiteClock "0:02:07"]
[BlackClock "0:01:38"]
[Board "145"]

1. g3 {[%clk 0:03:00]}  Nf6 {[%clk 0:02:56]} 2. Bg2 {[%clk 0:03:00]}  d5 {[%clk 0:02:57]} 3. d3 {[%clk 0:03:00]}  e6 {[%clk 0:02:55]} 4. Nf3 {[%clk 0:03:01]}  g6 {[%clk 0:02:55]} 5. O-O {[%clk 0:03:01]}  Bg7 {[%clk 0:02:56]} 6. h3 {[%clk 0:03:01]}  O-O {[%clk 0:02:55]} 7. Nc3 {[%clk 0:03:01]}  c5 {[%clk 0:02:50]} 8. e4 {[%clk 0:03:01]}  Nc6 {[%clk 0:02:49]} 9. Nd2 {[%clk 0:02:48]}  Re8 {[%clk 0:02:37]} 10. f4 {[%clk 0:02:47]}  b6 {[%clk 0:02:27]} 11. Kh2 {[%clk 0:02:46]}  Ba6 {[%clk 0:02:13]} 12. Rf2 {[%clk 0:02:44]}  Rc8 {[%clk 0:02:06]} 13. g4 {[%clk 0:02:43]}  dxe4 {[%clk 0:01:58]} 14. Ndxe4 {[%clk 0:02:41]}  Nxe4 {[%clk 0:01:54]} 15. Bxe4 {[%clk 0:02:31]}  f5 {[%clk 0:01:51]} 16. gxf5 {[%clk 0:02:29]}  exf5 {[%clk 0:01:48]} 17. Bd5+ {[%clk 0:02:28]}  Kh8 {[%clk 0:01:49]} 18. Bd2 {[%clk 0:02:28]}  Nd4 {[%clk 0:01:40]} 19. a4 {[%clk 0:02:17]}  Qh4 {[%clk 0:01:39]} 20. Bg2 {[%clk 0:02:07]}  Qxf2 {[%clk 0:01:38]} 0-1


[Site "https://www.chess.com"]

[Event "Titled Tuesday Blitz August 15 Early 2023"]
[White "Akylbek2021"]
[Black "Belov, Alexei"]
[BlackFideId "4128206"]
[WhiteElo "2313"]
[BlackElo "2621"]
[Result "1-0"]
[Round "1"]
[TimeControl "180+1"]
[Date "2023.08.15"]
[WhiteClock "0:00:43"]
[BlackClock "0:00:01"]
[Board "147"]

1. d4 {[%clk 0:03:00]}  d5 {[%clk 0:02:57]} 2. Bf4 {[%clk 0:03:00]}  e6 {[%clk 0:02:57]} 3. Nc3 {[%clk 0:03:00]}  Bd6 {[%clk 0:02:57]} 4. e3 {[%clk 0:03:01]}  Bxf4 {[%clk 0:02:55]} 5. exf4 {[%clk 0:03:01]}  Ne7 {[%clk 0:02:55]} 6. Bd3 {[%clk 0:03:01]}  c5 {[%clk 0:02:55]} 7. dxc5 {[%clk 0:03:00]}  Qa5 {[%clk 0:02:52]} 8. Nf3 {[%clk 0:02:59]}  Qxc5 {[%clk 0:02:49]} 9. O-O {[%clk 0:02:58]}  Nbc6 {[%clk 0:02:44]} 10. a3 {[%clk 0:02:56]}  h6 {[%clk 0:02:42]} 11. Ne2 {[%clk 0:02:46]}  O-O {[%clk 0:02:39]} 12. b4 {[%clk 0:02:42]}  Qd6 {[%clk 0:02:36]} 13. c4 {[%clk 0:02:40]}  b6 {[%clk 0:02:29]} 14. Rc1 {[%clk 0:02:36]}  Bb7 {[%clk 0:01:55]} 15. c5 {[%clk 0:02:34]}  bxc5 {[%clk 0:01:54]} 16. Rxc5 {[%clk 0:02:35]}  a5 {[%clk 0:01:47]} 17. Qb1 {[%clk 0:01:49]}  axb4 {[%clk 0:01:45]} 18. axb4 {[%clk 0:01:49]}  Rfb8 {[%clk 0:01:45]} 19. Rfc1 {[%clk 0:01:43]}  Ra3 {[%clk 0:01:17]} 20. b5 {[%clk 0:01:36]}  Na5 {[%clk 0:01:10]} 21. Qb4 {[%clk 0:01:26]}  Rxd3 {[%clk 0:00:49]} 22. Qxa5 {[%clk 0:01:26]}  d4 {[%clk 0:00:39]} 23. Ne5 {[%clk 0:01:19]}  Rb3 {[%clk 0:00:34]} 24. Qd2 {[%clk 0:01:14]}  f6 {[%clk 0:00:30]} 25. Nxd4 {[%clk 0:01:07]}  Ra3 {[%clk 0:00:18]} 26. Nec6 {[%clk 0:00:53]}  Rba8 {[%clk 0:00:11]} 27. Nb3 {[%clk 0:00:46]}  Qxd2 {[%clk 0:00:08]} 28. Nxe7+ {[%clk 0:00:46]}  Kf7 {[%clk 0:00:08]} 29. Nxd2 {[%clk 0:00:46]}  Kxe7 {[%clk 0:00:06]} 30. Rc7+ {[%clk 0:00:46]}  Kd6 {[%clk 0:00:07]} 31. Rxb7 {[%clk 0:00:47]}  Ra1 {[%clk 0:00:07]} 32. Rxa1 {[%clk 0:00:47]}  Rxa1+ {[%clk 0:00:05]} 33. Nf1 {[%clk 0:00:48]}  g5 {[%clk 0:00:05]} 34. fxg5 {[%clk 0:00:47]}  hxg5 {[%clk 0:00:05]} 35. g3 {[%clk 0:00:48]}  Rb1 {[%clk 0:00:05]} 36. Kg2 {[%clk 0:00:48]}  g4 {[%clk 0:00:05]} 37. Ne3 {[%clk 0:00:48]}  f5 {[%clk 0:00:05]} 38. Nc4+ {[%clk 0:00:46]}  Kc5 {[%clk 0:00:06]} 39. Ne5 {[%clk 0:00:46]}  Kd5 {[%clk 0:00:06]} 40. Ng6 {[%clk 0:00:45]}  e5 {[%clk 0:00:06]} 41. Re7 {[%clk 0:00:45]}  e4 {[%clk 0:00:02]} 42. Re5+ {[%clk 0:00:45]}  Kd4 {[%clk 0:00:02]} 43. Rxf5 {[%clk 0:00:45]}  e3 {[%clk 0:00:01]} 44. fxe3+ {[%clk 0:00:45]}  Kxe3 {[%clk 0:00:02]} 45. Ne5 {[%clk 0:00:42]}  Rb2+ {[%clk 0:00:01]} 46. Kg1 {[%clk 0:00:41]}  Rb1+ {[%clk 0:00:02]} 47. Rf1 {[%clk 0:00:41]}  Rxb5 {[%clk 0:00:02]} 48. Nxg4+ {[%clk 0:00:41]}  Ke2 {[%clk 0:00:02]} 49. Rf2+ {[%clk 0:00:41]}  Ke1 {[%clk 0:00:02]} 50. Kg2 {[%clk 0:00:42]}  Rd5 {[%clk 0:00:02]} 51. h4 {[%clk 0:00:42]}  Rd4 {[%clk 0:00:02]} 52. Nh2 {[%clk 0:00:40]}  Rd5 {[%clk 0:00:02]} 53. Nf3+ {[%clk 0:00:40]}  Kd1 {[%clk 0:00:02]} 54. Rd2+ {[%clk 0:00:41]}  Rxd2+ {[%clk 0:00:02]} 55. Nxd2 {[%clk 0:00:42]}  Kxd2 {[%clk 0:00:01]} 56. h5 {[%clk 0:00:43]} 1-0


[Site "https://www.chess.com"]

[Event "Titled Tuesday Blitz August 15 Early 2023"]
[White "Omorjan, Dejan"]
[Black "Shapiro, Daniel"]
[WhiteFideId "955345"]
[BlackFideId "2001780"]
[WhiteElo "2621"]
[BlackElo "2311"]
[Result "1-0"]
[Round "1"]
[TimeControl "180+1"]
[Date "2023.08.15"]
[WhiteClock "0:00:10"]
[BlackClock "0:00:00"]
[Board "148"]

1. d4 {[%clk 0:02:59]}  Nf6 {[%clk 0:02:59]} 2. Nf3 {[%clk 0:02:59]}  b6 {[%clk 0:02:57]} 3. e3 {[%clk 0:02:56]}  Bb7 {[%clk 0:02:55]} 4. Bd3 {[%clk 0:02:56]}  e6 {[%clk 0:02:51]} 5. O-O {[%clk 0:02:55]}  d6 {[%clk 0:02:48]} 6. Nbd2 {[%clk 0:02:55]}  Nbd7 {[%clk 0:02:48]} 7. e4 {[%clk 0:02:55]}  e5 {[%clk 0:02:48]} 8. c3 {[%clk 0:02:52]}  g6 {[%clk 0:02:46]} 9. Qe2 {[%clk 0:02:51]}  Bg7 {[%clk 0:02:47]} 10. Re1 {[%clk 0:02:38]}  O-O {[%clk 0:02:46]} 11. dxe5 {[%clk 0:02:38]}  dxe5 {[%clk 0:02:45]} 12. Bc2 {[%clk 0:02:33]}  Re8 {[%clk 0:02:43]} 13. Nf1 {[%clk 0:02:24]}  a5 {[%clk 0:02:40]} 14. Ng3 {[%clk 0:02:22]}  Nc5 {[%clk 0:02:28]} 15. Rd1 {[%clk 0:02:20]}  Qe7 {[%clk 0:02:29]} 16. Bg5 {[%clk 0:02:08]}  h6 {[%clk 0:02:27]} 17. Bxf6 {[%clk 0:02:08]}  Bxf6 {[%clk 0:02:19]} 18. h3 {[%clk 0:01:42]}  Ne6 {[%clk 0:02:18]} 19. Qe3 {[%clk 0:01:37]}  Bg7 {[%clk 0:02:10]} 20. Bb3 {[%clk 0:01:36]}  Nf4 {[%clk 0:02:09]} 21. Ne2 {[%clk 0:01:30]}  Nxe2+ {[%clk 0:01:54]} 22. Qxe2 {[%clk 0:01:31]}  a4 {[%clk 0:01:50]} 23. Bc4 {[%clk 0:01:24]}  a3 {[%clk 0:01:41]} 24. b4 {[%clk 0:01:18]}  h5 {[%clk 0:01:37]} 25. Rd3 {[%clk 0:01:07]}  Bh6 {[%clk 0:01:34]} 26. Rad1 {[%clk 0:01:06]}  Bc8 {[%clk 0:01:03]} 27. Bb5 {[%clk 0:00:57]}  Rf8 {[%clk 0:00:58]} 28. Bc6 {[%clk 0:00:48]}  Ra7 {[%clk 0:00:54]} 29. b5 {[%clk 0:00:45]}  f6 {[%clk 0:00:50]} 30. Bd5+ {[%clk 0:00:43]}  Be6 {[%clk 0:00:44]} 31. Qc2 {[%clk 0:00:41]}  Kg7 {[%clk 0:00:39]} 32. Qb3 {[%clk 0:00:40]}  Bc8 {[%clk 0:00:36]} 33. Bc6 {[%clk 0:00:38]}  Qc5 {[%clk 0:00:34]} 34. Nh2 {[%clk 0:00:28]}  Qe7 {[%clk 0:00:33]} 35. Rd7 {[%clk 0:00:27]}  Bxd7 {[%clk 0:00:31]} 36. Rxd7 {[%clk 0:00:28]}  Rf7 {[%clk 0:00:30]} 37. Rxe7 {[%clk 0:00:26]}  Rxe7 {[%clk 0:00:31]} 38. Qd5 {[%clk 0:00:24]}  Ra4 {[%clk 0:00:28]} 39. Nf1 {[%clk 0:00:22]}  Bg5 {[%clk 0:00:21]} 40. g3 {[%clk 0:00:20]}  Ra7 {[%clk 0:00:21]} 41. h4 {[%clk 0:00:19]}  Bh6 {[%clk 0:00:21]} 42. Qd8 {[%clk 0:00:19]}  Rf7 {[%clk 0:00:20]} 43. Bd5 {[%clk 0:00:19]}  Rf8 {[%clk 0:00:20]} 44. Qe7+ {[%clk 0:00:19]}  Kh8 {[%clk 0:00:20]} 45. Ne3 {[%clk 0:00:15]}  Bg7 {[%clk 0:00:20]} 46. Kg2 {[%clk 0:00:15]}  Ra5 {[%clk 0:00:20]} 47. Bc6 {[%clk 0:00:13]}  Ra4 {[%clk 0:00:19]} 48. Qxc7 {[%clk 0:00:12]}  Ra5 {[%clk 0:00:17]} 49. Qxb6 {[%clk 0:00:12]}  Ra4 {[%clk 0:00:18]} 50. Qc5 {[%clk 0:00:12]}  Ra5 {[%clk 0:00:15]} 51. Nd5 {[%clk 0:00:12]}  Kh7 {[%clk 0:00:14]} 52. Nb4 {[%clk 0:00:12]}  Rd8 {[%clk 0:00:13]} 53. Qe7 {[%clk 0:00:12]}  Rd2 {[%clk 0:00:13]} 54. Be8 {[%clk 0:00:09]}  Ra8 {[%clk 0:00:09]} 55. Qf7 {[%clk 0:00:09]}  Rxe8 {[%clk 0:00:08]} 56. Qxe8 {[%clk 0:00:09]}  Bh6 {[%clk 0:00:07]} 57. Qf7+ {[%clk 0:00:07]}  Bg7 {[%clk 0:00:07]} 58. b6 {[%clk 0:00:07]}  Rd8 {[%clk 0:00:03]} 59. b7 {[%clk 0:00:07]}  Rb8 {[%clk 0:00:03]} 60. Qc7 {[%clk 0:00:08]}  Rf8 {[%clk 0:00:03]} 61. b8=Q {[%clk 0:00:08]}  Rxb8 {[%clk 0:00:04]} 62. Qxb8 {[%clk 0:00:09]}  Bh6 {[%clk 0:00:04]} 63. Qc7+ {[%clk 0:00:09]}  Bg7 {[%clk 0:00:05]} 64. Nd5 {[%clk 0:00:10]}  Kg8 {[%clk 0:00:04]} 65. Qe7 {[%clk 0:00:09]}  Kh7 {[%clk 0:00:04]} 66. Nxf6+ {[%clk 0:00:10]}  Kh6 {[%clk 0:00:04]} 67. Nd5 {[%clk 0:00:09]}  g5 {[%clk 0:00:03]} 68. Qxg5+ {[%clk 0:00:09]}  Kh7 {[%clk 0:00:04]} 69. Qxh5+ {[%clk 0:00:09]}  Kg8 {[%clk 0:00:04]} 70. Qg6 {[%clk 0:00:09]}  Kf8 {[%clk 0:00:00]} 71. h5 {[%clk 0:00:10]} 1-0


[Site "https://www.chess.com"]

[Event "Titled Tuesday Blitz August 15 Early 2023"]
[White "Saucey, Michel"]
[Black "Sydoryka, Vladyslav"]
[WhiteFideId "601845"]
[BlackFideId "14145928"]
[WhiteElo "2309"]
[BlackElo "2619"]
[Result "0-1"]
[Round "1"]
[TimeControl "180+1"]
[Date "2023.08.15"]
[WhiteClock "0:00:53"]
[BlackClock "0:01:51"]
[Board "149"]

1. d4 {[%clk 0:03:00]}  Nf6 {[%clk 0:02:59]} 2. Nf3 {[%clk 0:03:00]}  d5 {[%clk 0:02:59]} 3. c4 {[%clk 0:03:00]}  e6 {[%clk 0:03:00]} 4. Nc3 {[%clk 0:02:59]}  Bb4 {[%clk 0:03:00]} 5. cxd5 {[%clk 0:02:56]}  exd5 {[%clk 0:03:01]} 6. Bg5 {[%clk 0:02:55]}  h6 {[%clk 0:03:01]} 7. Bh4 {[%clk 0:02:54]}  Nbd7 {[%clk 0:02:52]} 8. e3 {[%clk 0:02:53]}  g5 {[%clk 0:02:52]} 9. Bg3 {[%clk 0:02:53]}  Ne4 {[%clk 0:02:52]} 10. Qc2 {[%clk 0:02:42]}  h5 {[%clk 0:02:50]} 11. h3 {[%clk 0:02:12]}  Nxg3 {[%clk 0:02:46]} 12. fxg3 {[%clk 0:02:12]}  Qe7 {[%clk 0:02:40]} 13. Kf2 {[%clk 0:02:09]}  c6 {[%clk 0:02:33]} 14. Bd3 {[%clk 0:02:07]}  Bd6 {[%clk 0:02:34]} 15. e4 {[%clk 0:02:05]}  dxe4 {[%clk 0:02:25]} 16. Nxe4 {[%clk 0:02:04]}  h4 {[%clk 0:02:24]} 17. Rhe1 {[%clk 0:02:02]}  Kd8 {[%clk 0:02:11]} 18. Nfxg5 {[%clk 0:01:56]}  Bxg3+ {[%clk 0:02:07]} 19. Nxg3 {[%clk 0:01:24]}  hxg3+ {[%clk 0:02:07]} 20. Kg1 {[%clk 0:01:09]}  Qxg5 {[%clk 0:02:08]} 21. Re4 {[%clk 0:01:05]}  Nf6 {[%clk 0:01:53]} 22. Re5 {[%clk 0:01:04]}  Qf4 {[%clk 0:01:53]} 23. Qc5 {[%clk 0:00:57]}  Qf2+ {[%clk 0:01:51]} 24. Kh1 {[%clk 0:00:53]}  Rxh3+ {[%clk 0:01:51]} 0-1


[Site "https://www.chess.com"]

[Event "Titled Tuesday Blitz August 15 Early 2023"]
[White "Bodnaruk, Anastasia"]
[Black "Pumpkin_in_moonlight"]
[WhiteFideId "4181751"]
[WhiteElo "2619"]
[BlackElo "2309"]
[Result "1-0"]
[Round "1"]
[TimeControl "180+1"]
[Date "2023.08.15"]
[WhiteClock "0:01:19"]
[BlackClock "0:00:07"]
[Board "150"]

1. e4 {[%clk 0:03:00]}  e5 {[%clk 0:02:56]} 2. Nf3 {[%clk 0:03:00]}  Nc6 {[%clk 0:02:53]} 3. Bb5 {[%clk 0:03:00]}  a6 {[%clk 0:02:36]} 4. Ba4 {[%clk 0:03:00]}  Nf6 {[%clk 0:02:35]} 5. O-O {[%clk 0:02:58]}  Be7 {[%clk 0:02:34]} 6. Re1 {[%clk 0:02:56]}  b5 {[%clk 0:02:34]} 7. Bb3 {[%clk 0:02:56]}  d6 {[%clk 0:02:31]} 8. c3 {[%clk 0:02:55]}  O-O {[%clk 0:02:22]} 9. h3 {[%clk 0:02:55]}  Nb8 {[%clk 0:02:18]} 10. d4 {[%clk 0:02:54]}  Nbd7 {[%clk 0:02:18]} 11. Nbd2 {[%clk 0:02:55]}  Bb7 {[%clk 0:02:16]} 12. Bc2 {[%clk 0:02:54]}  Re8 {[%clk 0:02:15]} 13. Nf1 {[%clk 0:02:46]}  Bf8 {[%clk 0:02:10]} 14. Ng3 {[%clk 0:02:45]}  g6 {[%clk 0:02:08]} 15. Bg5 {[%clk 0:02:42]}  h6 {[%clk 0:02:02]} 16. Bd2 {[%clk 0:02:41]}  Bg7 {[%clk 0:01:55]} 17. a4 {[%clk 0:02:38]}  c6 {[%clk 0:01:51]} 18. b4 {[%clk 0:02:30]}  Nb6 {[%clk 0:01:38]} 19. a5 {[%clk 0:02:08]}  Nc4 {[%clk 0:01:37]} 20. Bb3 {[%clk 0:02:07]}  Nxd2 {[%clk 0:00:45]} 21. Qxd2 {[%clk 0:02:07]}  Qe7 {[%clk 0:00:44]} 22. Nh4 {[%clk 0:01:36]}  Rad8 {[%clk 0:00:41]} 23. Nxg6 {[%clk 0:01:32]}  Qc7 {[%clk 0:00:40]} 24. Nh4 {[%clk 0:01:25]}  c5 {[%clk 0:00:33]} 25. Nhf5 {[%clk 0:01:21]}  c4 {[%clk 0:00:27]} 26. Bc2 {[%clk 0:01:19]}  Kh7 {[%clk 0:00:26]} 27. Nxg7 {[%clk 0:01:19]}  Kxg7 {[%clk 0:00:07]} 28. Nf5+ {[%clk 0:01:19]} 1-0


[Site "https://www.chess.com"]

[Event "Titled Tuesday Blitz August 15 Early 2023"]
[White "Kiselev, Pavel"]
[Black "Budrewicz, Krzysztof"]
[WhiteFideId "4191102"]
[BlackFideId "1127950"]
[WhiteElo "2302"]
[BlackElo "2605"]
[Result "0-1"]
[Round "1"]
[TimeControl "180+1"]
[Date "2023.08.15"]
[WhiteClock "0:01:24"]
[BlackClock "0:00:47"]
[Board "153"]

1. Nf3 {[%clk 0:03:00]}  Nf6 {[%clk 0:02:55]} 2. c4 {[%clk 0:03:01]}  c5 {[%clk 0:02:53]} 3. d4 {[%clk 0:03:01]}  g6 {[%clk 0:02:50]} 4. d5 {[%clk 0:02:59]}  Bg7 {[%clk 0:02:50]} 5. g3 {[%clk 0:02:59]}  O-O {[%clk 0:02:50]} 6. Bg2 {[%clk 0:03:00]}  d6 {[%clk 0:02:50]} 7. Nc3 {[%clk 0:03:00]}  Bf5 {[%clk 0:02:47]} 8. O-O {[%clk 0:03:00]}  Ne4 {[%clk 0:02:47]} 9. Nxe4 {[%clk 0:02:59]}  Bxe4 {[%clk 0:02:46]} 10. Nd2 {[%clk 0:03:00]}  Bxg2 {[%clk 0:02:46]} 11. Kxg2 {[%clk 0:03:01]}  Nd7 {[%clk 0:02:44]} 12. e4 {[%clk 0:03:01]}  a6 {[%clk 0:02:43]} 13. Qe2 {[%clk 0:03:01]}  Rb8 {[%clk 0:02:42]} 14. f4 {[%clk 0:03:01]}  b5 {[%clk 0:02:39]} 15. Nb3 {[%clk 0:03:00]}  bxc4 {[%clk 0:02:36]} 16. Qxc4 {[%clk 0:03:01]}  Rb4 {[%clk 0:02:34]} 17. Qe2 {[%clk 0:02:59]}  Qb6 {[%clk 0:02:25]} 18. Bd2 {[%clk 0:02:55]}  Rb5 {[%clk 0:02:19]} 19. Bc3 {[%clk 0:02:31]}  Rb8 {[%clk 0:02:16]} 20. Rac1 {[%clk 0:02:25]}  a5 {[%clk 0:02:14]} 21. Nd2 {[%clk 0:02:15]}  Bxc3 {[%clk 0:02:06]} 22. bxc3 {[%clk 0:02:07]}  Rb2 {[%clk 0:02:05]} 23. Rf2 {[%clk 0:02:02]}  a4 {[%clk 0:02:01]} 24. Ra1 {[%clk 0:01:45]}  Qc7 {[%clk 0:01:41]} 25. Qc4 {[%clk 0:01:43]}  Nb6 {[%clk 0:01:36]} 26. Qe2 {[%clk 0:01:43]}  c4 {[%clk 0:01:36]} 27. Qe3 {[%clk 0:01:41]}  a3 {[%clk 0:01:31]} 28. Qd4 {[%clk 0:01:36]}  Rc8 {[%clk 0:01:27]} 29. e5 {[%clk 0:01:34]}  Qc5 {[%clk 0:01:27]} 30. Qxc5 {[%clk 0:01:30]}  Rxc5 {[%clk 0:01:27]} 31. exd6 {[%clk 0:01:29]}  exd6 {[%clk 0:01:27]} 32. Ne4 {[%clk 0:01:29]}  Rxd5 {[%clk 0:01:25]} 33. Nf6+ {[%clk 0:01:29]}  Kg7 {[%clk 0:01:23]} 34. Nxd5 {[%clk 0:01:30]}  Nxd5 {[%clk 0:01:24]} 35. Rxb2 {[%clk 0:01:29]}  axb2 {[%clk 0:01:23]} 36. Rb1 {[%clk 0:01:30]}  Nxc3 {[%clk 0:01:16]} 37. Rxb2 {[%clk 0:01:30]}  d5 {[%clk 0:01:02]} 38. Kf3 {[%clk 0:01:29]}  h5 {[%clk 0:00:51]} 39. Rd2 {[%clk 0:01:25]}  Kf6 {[%clk 0:00:48]} 40. Rc2 {[%clk 0:01:25]}  Nb5 {[%clk 0:00:46]} 41. a4 {[%clk 0:01:24]}  Nd4+ {[%clk 0:00:46]} 42. Kf2 {[%clk 0:01:24]}  Nxc2 {[%clk 0:00:47]} 43. a5 {[%clk 0:01:25]}  Nb4 {[%clk 0:00:47]} 44. a6 {[%clk 0:01:24]}  Nxa6 {[%clk 0:00:47]} 0-1


[Site "https://www.chess.com"]

[Event "Titled Tuesday Blitz August 15 Early 2023"]
[White "Wang, Alexander J"]
[Black "HamedWafa4"]
[WhiteFideId "30955270"]
[WhiteElo "2297"]
[BlackElo "2604"]
[Result "0-1"]
[Round "1"]
[TimeControl "180+1"]
[Date "2023.08.15"]
[WhiteClock "0:00:04"]
[BlackClock "0:00:18"]
[Board "155"]

1. e4 {[%clk 0:02:59]}  e5 {[%clk 0:02:52]} 2. Nf3 {[%clk 0:02:58]}  Nc6 {[%clk 0:02:49]} 3. Bb5 {[%clk 0:02:57]}  a6 {[%clk 0:02:42]} 4. Ba4 {[%clk 0:02:53]}  Nf6 {[%clk 0:02:31]} 5. d4 {[%clk 0:02:46]}  Nxe4 {[%clk 0:02:28]} 6. Qe2 {[%clk 0:02:41]}  b5 {[%clk 0:02:16]} 7. Qxe4 {[%clk 0:02:24]}  d5 {[%clk 0:02:12]} 8. Qe2 {[%clk 0:02:03]}  bxa4 {[%clk 0:02:04]} 9. dxe5 {[%clk 0:02:01]}  Be7 {[%clk 0:02:01]} 10. O-O {[%clk 0:01:51]}  O-O {[%clk 0:01:59]} 11. h3 {[%clk 0:01:50]}  Be6 {[%clk 0:01:55]} 12. c3 {[%clk 0:01:49]}  h6 {[%clk 0:01:50]} 13. Be3 {[%clk 0:01:47]}  Rb8 {[%clk 0:01:47]} 14. Bd4 {[%clk 0:01:44]}  Nxd4 {[%clk 0:01:44]} 15. cxd4 {[%clk 0:01:40]}  c5 {[%clk 0:01:43]} 16. Nc3 {[%clk 0:01:36]}  cxd4 {[%clk 0:01:39]} 17. Nxd4 {[%clk 0:01:34]}  a3 {[%clk 0:01:40]} 18. b3 {[%clk 0:01:25]}  Qb6 {[%clk 0:01:34]} 19. Rfd1 {[%clk 0:01:19]}  Rbc8 {[%clk 0:01:17]} 20. Na4 {[%clk 0:01:16]}  Qa5 {[%clk 0:01:17]} 21. Rac1 {[%clk 0:01:03]}  Bg5 {[%clk 0:01:08]} 22. Rxc8 {[%clk 0:00:59]}  Rxc8 {[%clk 0:01:09]} 23. Nxe6 {[%clk 0:00:48]}  fxe6 {[%clk 0:01:07]} 24. Qg4 {[%clk 0:00:47]}  Re8 {[%clk 0:00:45]} 25. f4 {[%clk 0:00:41]}  Bd8 {[%clk 0:00:43]} 26. f5 {[%clk 0:00:39]}  exf5 {[%clk 0:00:33]} 27. Qxf5 {[%clk 0:00:39]}  Bb6+ {[%clk 0:00:26]} 28. Nxb6 {[%clk 0:00:37]}  Qxb6+ {[%clk 0:00:27]} 29. Kh1 {[%clk 0:00:37]}  d4 {[%clk 0:00:27]} 30. Qe4 {[%clk 0:00:31]}  Rd8 {[%clk 0:00:22]} 31. e6 {[%clk 0:00:26]}  Qc5 {[%clk 0:00:20]} 32. e7 {[%clk 0:00:23]}  Re8 {[%clk 0:00:20]} 33. Qe6+ {[%clk 0:00:18]}  Kh8 {[%clk 0:00:19]} 34. Re1 {[%clk 0:00:16]}  d3 {[%clk 0:00:19]} 35. Qf7 {[%clk 0:00:16]}  Qc6 {[%clk 0:00:19]} 36. Qf8+ {[%clk 0:00:14]}  Kh7 {[%clk 0:00:20]} 37. Qf5+ {[%clk 0:00:14]}  Qg6 {[%clk 0:00:20]} 38. Qd7 {[%clk 0:00:10]}  Kg8 {[%clk 0:00:17]} 39. Rd1 {[%clk 0:00:08]}  Qf7 {[%clk 0:00:16]} 40. Rxd3 {[%clk 0:00:08]}  Rxe7 {[%clk 0:00:16]} 41. Qd8+ {[%clk 0:00:08]}  Kh7 {[%clk 0:00:17]} 42. Qd6 {[%clk 0:00:07]}  Re6 {[%clk 0:00:17]} 43. Qg3 {[%clk 0:00:07]}  Rg6 {[%clk 0:00:17]} 44. Qe3 {[%clk 0:00:06]}  Qf1+ {[%clk 0:00:17]} 45. Qg1 {[%clk 0:00:04]}  Qxd3 {[%clk 0:00:18]} 0-1


[Site "https://www.chess.com"]